bitfinex/quotes_SOLUSD_20230103
["timestamp","ask_amount","ask_price","bid_price","bid_amount"]
[1672734853324,30.0,11.802,11.789,30.0]
[1672734853650,30.0,11.802,11.79,83.71]
[1672734853864,30.0,11.802,11.79,195.4929]
[1672734854802,30.0,11.802,11.79,175.4929]
[1672734855969,12.98,11.8,11.79,175.4929]
[1672734856284,42.98,11.8,11.79,175.4929]
[1672734857861,12.98,11.8,11.79,175.4929]
[1672734858168,45.1901,11.801,11.79,175.4929]
[1672734859019,30.0,11.8,11.79,175.4929]
[1672734863126,45.1901,11.801,11.79,175.4929]
[1672734867411,30.0,11.8,11.79,111.7829]
[1672734867939,53.2609,11.8,11.79,111.7829]
[1672734868803,66.3509,11.8,11.79,111.7829]
[1672734868992,66.3509,11.8,11.79,175.4929]
[1672734872884,36.3509,11.8,11.79,175.4929]
[1672734874898,36.3509,11.8,11.79,111.7829]
[1672734879213,36.3509,11.8,11.79,124.43207136]
[1672734879401,36.3509,11.8,11.79,188.14207136]
[1672734880778,36.3509,11.8,11.79,175.4929]
[1672734884265,36.3509,11.8,11.79,111.7829]
[1672734884462,36.3509,11.8,11.79,175.4929]
[1672734886157,30.0,11.799,11.79,111.7829]
[1672734886477,23.2609,11.8,11.79,124.43207136]
[1672734888030,23.2609,11.8,11.79,188.14207136]
[1672734890461,23.2609,11.8,11.79,175.4929]
[1672734890680,23.2609,11.8,11.79,111.7829]
[1672734891289,23.2609,11.8,11.79,175.4929]
[1672734891501,23.2609,11.8,11.79,111.7829]
[1672734897294,86.9109,11.8,11.79,111.7829]
[1672734897500,100.0009,11.8,11.79,111.7829]
[1672734898434,36.3509,11.8,11.79,111.7829]
[1672734898765,63.66,11.799,11.787,12.64917136]
[1672734898974,24.9907,11.799,11.783,30.0]
[1672734899188,165.5954,11.798,11.784,63.74]
[1672734899502,165.5954,11.798,11.785,30.0]
[1672734899713,165.5954,11.798,11.786,63.73]
[1672734900032,24.9907,11.797,11.786,87.3553]
[1672734901903,54.9907,11.797,11.786,23.6253]
[1672734902114,54.9907,11.797,11.786,87.3553]
[1672734905482,24.9907,11.797,11.786,87.3553]
[1672734906128,54.9907,11.797,11.786,87.3553]
[1672734909469,54.9907,11.797,11.786,23.6253]
[1672734910531,54.9907,11.797,11.786,87.3553]
[1672734910743,54.9907,11.797,11.786,23.6253]
[1672734911491,54.9907,11.797,11.786,87.3553]
[1672734913277,30.0,11.796,11.786,23.6253]
[1672734913780,52.6675,11.796,11.786,23.6253]
[1672734914541,52.6675,11.796,11.786,87.3553]
[1672734921162,52.6675,11.796,11.786,23.6253]
[1672734923261,52.6675,11.796,11.783,63.75]
[1672734923468,13.1,11.79,11.779,87.7728]
[1672734923978,13.1,11.79,11.78,12.64917136]
[1672734924191,13.1,11.79,11.78,76.40917136]
[1672734924413,162.7693,11.792,11.781,30.0]
[1672734924627,22.5007,11.791,11.78,63.76]
[1672734924845,22.5007,11.791,11.781,30.0]
[1672734925156,54.9102,11.799,11.782,96.39917136]
[1672734925354,45.0505,11.798,11.783,30.0]
[1672734925569,45.0505,11.798,11.784,246.9094]
[1672734925570,30.0,11.797,11.784,246.9094]
[1672734926190,53.5808,11.797,11.785,22.5175]
[1672734926821,53.5808,11.797,11.786,22.5175]
[1672734927031,53.5808,11.797,11.786,86.2475]
[1672734927265,53.5808,11.797,11.786,22.5175]
[1672734928825,115.12327051,11.797,11.786,22.5175]
[1672734934307,85.12327051,11.797,11.786,22.5175]
[1672734934629,23.5808,11.797,11.786,22.5175]
[1672734934940,30.0,11.796,11.787,63.73]
[1672734935769,30.0,11.796,11.786,86.2475]
[1672734937458,30.0,11.796,11.786,22.5175]
[1672734946821,30.0,11.796,11.778,63.77]
[1672734946822,63.68,11.795,11.778,63.77]
[1672734947140,13.03,11.79,11.778,229.0552]
[1672734947344,13.03,11.79,11.779,142.5235]
[1672734947551,13.03,11.79,11.78,63.76]
[1672734947768,13.03,11.79,11.78,86.4741]
[1672734947982,13.03,11.79,11.781,30.0]
[1672734948177,158.6894,11.792,11.781,63.76]
[1672734949551,30.0,11.791,11.781,63.76]
[1672734950092,53.5852,11.791,11.781,63.76]
[1672734950283,53.5852,11.791,11.78,86.4741]
[1672734953436,53.5852,11.791,11.78,146.15785757]
[1672734953960,23.5852,11.791,11.78,146.15785757]
[1672734954197,93.67,11.798,11.781,75.60878526]
[1672734954391,54.6003,11.797,11.782,93.75]
[1672734954603,54.6003,11.797,11.783,178.9079]
[1672734954929,54.6003,11.797,11.784,63.74]
[1672734955135,54.6003,11.797,11.784,282.33165757]
[1672734955324,54.6003,11.797,11.785,59.68375757]
[1672734955535,54.6003,11.797,11.786,87.0086]
[1672734955978,54.6003,11.797,11.786,23.2786]
[1672734959329,54.6003,11.797,11.786,87.0086]
[1672734959538,54.6003,11.797,11.786,86.5086]
[1672734962070,118.2703,11.797,11.786,22.7786]
[1672734962902,88.2703,11.797,11.786,22.7786]
[1672734963318,24.6003,11.797,11.786,22.7786]
[1672734970705,88.2703,11.797,11.786,22.7786]
[1672734970892,30.0,11.796,11.786,22.7786]
[1672734971097,88.2703,11.797,11.786,22.7786]
[1672734971313,24.6003,11.797,11.786,86.5086]
[1672734971539,24.6003,11.797,11.786,22.7786]
[1672734976164,24.6003,11.797,11.786,86.5086]
[1672734977864,24.6003,11.797,11.786,22.7786]
[1672734978604,30.0,11.796,11.786,22.7786]
[1672734980698,32.65987586,11.795,11.783,63.75]
[1672734980897,30.0,11.794,11.778,228.4117]
[1672734981110,30.0,11.792,11.778,228.4117]
[1672734981331,46.8144,11.791,11.779,166.4719]
[1672734981555,30.0,11.79,11.78,63.76]
[1672734982071,53.1239,11.79,11.78,87.3818]
[1672735002016,23.1239,11.79,11.78,87.3818]
[1672735002230,23.1239,11.79,11.781,30.0]
[1672735002441,93.66,11.799,11.782,63.75]
[1672735002654,86.5904,11.797,11.783,132.7227]
[1672735002858,86.5904,11.797,11.784,63.74]
[1672735003068,22.9204,11.797,11.785,23.3324]
[1672735005383,30.0,11.794,11.781,63.76]
[1672735005595,30.0,11.794,11.778,227.2248]
[1672735005800,30.0,11.792,11.778,227.2248]
[1672735006015,93.7,11.792,11.778,227.2248]
[1672735006453,30.0,11.79,11.779,23.371]
[1672735007065,53.3805,11.79,11.779,23.371]
[1672735007702,53.3805,11.79,11.78,63.76]
[1672735010976,23.3805,11.79,11.78,63.76]
[1672735015194,93.67,11.798,11.781,30.0]
[1672735015500,198.3349,11.799,11.782,96.39917136]
[1672735015713,198.3349,11.799,11.782,368.09060689]
[1672735015714,48.8182,11.798,11.782,368.09060689]
[1672735015929,78.8182,11.798,11.783,99.85192498]
[1672735016112,78.8182,11.798,11.784,83.74]
[1672735016323,24.799,11.797,11.784,247.9644]
[1672735016948,24.799,11.797,11.785,24.4639]
[1672735017169,24.799,11.797,11.786,63.73]
[1672735018020,24.799,11.797,11.786,88.0518]
[1672735018869,23.299,11.797,11.786,88.0518]
[1672735021703,23.299,11.797,11.787,12.65987586]
[1672735022735,23.299,11.797,11.787,35.44757586]
[1672735022945,23.299,11.797,11.787,22.7877]
[1672735024046,23.299,11.797,11.787,35.44757586]
[1672735026434,23.299,11.797,11.788,93.72]
[1672735026871,23.299,11.797,11.788,63.72]
[1672735033174,23.299,11.797,11.787,86.5177]
[1672735043484,23.299,11.797,11.787,22.7877]
[1672735043691,23.299,11.797,11.787,86.5177]
[1672735046019,30.0,11.796,11.787,22.7877]
[1672735048432,23.299,11.797,11.787,86.5177]
[1672735048643,23.299,11.797,11.787,22.7877]
[1672735049161,23.299,11.797,11.787,86.5177]
[1672735054742,23.299,11.797,11.787,22.7877]
[1672735056106,23.299,11.797,11.787,86.5177]
[1672735056514,23.299,11.797,11.787,22.7877]
[1672735057593,23.299,11.797,11.787,86.5177]
[1672735058333,23.299,11.797,11.787,22.7877]
[1672735061491,23.299,11.797,11.787,86.5177]
[1672735061807,23.299,11.797,11.787,22.7877]
[1672735065797,30.0,11.796,11.787,22.7877]
[1672735069176,23.299,11.797,11.787,22.7877]
[1672735075149,30.0,11.796,11.787,22.7877]
[1672735077554,20.0,11.795,11.783,63.75]
[1672735077783,30.0,11.793,11.779,30.0]
[1672735077998,20.0,11.792,11.78,86.3655]
[1672735078520,44.272,11.792,11.78,86.3655]
[1672735078735,24.272,11.792,11.78,86.3655]
[1672735090310,24.272,11.792,11.78,205.7468]
[1672735094405,12.99,11.79,11.78,205.7468]
[1672735094621,12.99,11.79,11.78,141.9868]
[1672735095337,12.99,11.79,11.78,205.7468]
[1672735095770,12.99,11.79,11.78,141.9868]
[1672735110905,35.7889,11.79,11.78,141.9868]
[1672735115744,30.0,11.789,11.78,141.9868]
[1672735121432,35.9189,11.79,11.78,141.9868]
[1672735122566,35.9189,11.79,11.78,205.7468]
[1672735122781,93.69,11.794,11.78,205.7468]
[1672735122782,30.0,11.798,11.781,30.0]
[1672735122991,30.0,11.798,11.782,197.4904]
[1672735123308,30.0,11.798,11.783,30.0]
[1672735123537,30.0,11.798,11.784,83.74]
[1672735123740,30.0,11.798,11.785,24.253]
[1672735123946,30.0,11.798,11.786,63.73]
[1672735124162,30.0,11.798,11.786,87.983]
[1672735130796,30.0,11.798,11.787,23.1676]
[1672735133016,87.7938,11.799,11.787,23.1676]
[1672735133198,24.1338,11.799,11.787,23.1676]
[1672735133620,54.1338,11.799,11.787,23.1676]
[1672735133844,54.1338,11.799,11.788,22.6129]
[1672735136387,117.7938,11.799,11.788,22.6129]
[1672735136601,30.0,11.798,11.788,22.6129]
[1672735144287,54.1338,11.799,11.788,22.6129]
[1672735152795,24.1338,11.799,11.788,22.6129]
[1672735154158,24.1338,11.799,11.789,30.0]
[1672735154694,24.1338,11.799,11.788,116.3329]
[1672735155103,24.1338,11.799,11.788,86.3329]
[1672735157535,24.1338,11.799,11.788,22.6129]
[1672735157721,24.1338,11.799,11.788,35.27277586]
[1672735157933,24.1338,11.799,11.789,63.71]
[1672735158354,24.1338,11.799,11.789,88.2168]
[1672735158985,24.1338,11.799,11.789,24.5068]
[1672735161419,30.0,11.798,11.789,24.5068]
[1672735186828,20.0,11.797,11.782,63.75]
[1672735187037,13.1,11.79,11.778,227.254]
[1672735187879,24.6753,11.789,11.779,23.5416]
[1672735188940,30.0,11.788,11.779,23.5416]
[1672735190510,30.0,11.788,11.779,23.43856317]
[1672735204733,54.6753,11.789,11.779,23.43856317]
[1672735204734,24.6753,11.789,11.779,99.86843903]
[1672735204918,30.0,11.795,11.779,99.86843903]
[1672735205129,30.0,11.795,11.78,180.1672]
[1672735205349,30.0,11.795,11.781,199.4651]
[1672735205563,20.0,11.794,11.781,199.4651]
[1672735205773,93.68,11.795,11.781,199.4651]
[1672735205970,30.0,11.795,11.782,12.65987586]
[1672735206181,30.0,11.795,11.783,63.75]
[1672735206820,30.0,11.795,11.782,199.4551]
[1672735207143,30.0,11.795,11.783,20.0]
[1672735207365,30.0,11.795,11.784,63.74]
[1672735207551,30.0,11.795,11.785,20.0]
[1672735212385,30.0,11.795,11.785,83.74]
[1672735215028,30.0,11.795,11.785,20.0]
[1672735216691,30.0,11.795,11.785,32.65987586]
[1672735216904,116.9185,11.798,11.785,20.0]
[1672735217228,53.2485,11.798,11.785,83.74]
[1672735218381,63.67,11.797,11.785,83.74]
[1672735218696,30.0,11.796,11.785,83.74]
[1672735219532,30.0,11.796,11.785,20.0]
[1672735220497,30.0,11.796,11.785,83.74]
[1672735233940,186.51035244,11.796,11.785,83.74]
[1672735236687,186.51035244,11.796,11.785,107.9314]
[1672735240889,156.51035244,11.796,11.785,107.9314]
[1672735241310,156.51035244,11.796,11.786,48.26227667]
[1672735241522,156.51035244,11.796,11.787,63.73]
[1672735244240,156.51035244,11.796,11.786,135.66387667]
[1672735244786,156.51035244,11.796,11.786,71.93387667]
[1672735245103,30.0,11.795,11.786,23.6716]
[1672735254654,30.0,11.795,11.776,63.78]
[1672735254655,30.0,11.793,11.776,63.78]
[1672735254978,13.01,11.79,11.776,228.5507]
[1672735255168,13.01,11.79,11.777,164.7707]
[1672735255169,46.8754,11.789,11.777,164.7707]
[1672735255384,30.0,11.788,11.778,63.77]
[1672735255818,53.6505,11.788,11.778,87.7856]
[1672735263289,53.6505,11.788,11.778,24.0156]
[1672735266655,63.73,11.787,11.778,24.0156]
[1672735266842,30.0,11.786,11.778,24.0156]
[1672735278218,23.5209,11.787,11.778,24.0156]
[1672735282417,63.73,11.786,11.778,24.0156]
[1672735283163,30.0,11.785,11.778,24.0156]
[1672735284535,30.0,11.785,11.771,63.81]
[1672735284722,13.13,11.78,11.772,164.7403]
[1672735284937,65.65,11.78,11.772,164.7403]
[1672735285254,30.0,11.779,11.772,164.7403]
[1672735286307,13.01,11.78,11.772,164.7403]
[1672735287149,30.0,11.783,11.773,63.8]
[1672735287371,20.0,11.782,11.773,63.8]
[1672735287984,20.0,11.782,11.772,164.7403]
[1672735288633,44.37,11.782,11.773,63.8]
[1672735289043,30.0,11.781,11.773,63.8]
[1672735289361,13.01,11.78,11.772,164.7403]
[1672735290618,13.01,11.78,11.773,83.8]
[1672735291997,13.01,11.78,11.773,63.8]
[1672735292193,13.01,11.78,11.772,164.7403]
[1672735293891,13.04,11.78,11.772,164.7403]
[1672735294202,65.37,11.78,11.772,164.7403]
[1672735294390,30.0,11.779,11.772,164.7403]
[1672735296496,93.77,11.779,11.772,164.7403]
[1672735297546,93.77,11.779,11.762,63.86]
[1672735297547,140.0463466,11.778,11.762,63.86]
[1672735297762,140.0463466,11.778,11.748,346.20630335]
[1672735297763,30.0,11.776,11.76,24.8309]
[1672735297989,63.79,11.775,11.76,24.8309]
[1672735298192,30.0,11.773,11.76,24.8309]
[1672735298391,83.81,11.772,11.76,24.8309]
[1672735298596,30.0,11.771,11.76,24.8309]
[1672735299023,30.0,11.771,11.77,0.0064601]
[1672735299233,54.827,11.771,11.77,0.0064601]
[1672735300715,24.827,11.771,11.77,0.0064601]
[1672735300929,118.1245,11.773,11.77,0.0064601]
[1672735301256,78.6909,11.779,11.77,0.0064601]
[1672735301678,30.0,11.777,11.77,0.0064601]
[1672735307649,23.1739,11.778,11.77,0.0064601]
[1672735310716,30.0,11.777,11.77,0.0064601]
[1672735313023,23.1739,11.778,11.77,0.0064601]
[1672735313443,23.1739,11.778,11.77,76.48633596]
[1672735313672,23.1739,11.778,11.77,63.8264601]
[1672735313868,23.1739,11.778,11.77,0.0064601]
[1672735314200,23.1739,11.778,11.771,63.81]
[1672735315237,23.1739,11.778,11.77,63.8264601]
[1672735317970,30.0,11.777,11.77,0.0064601]
[1672735320294,53.1739,11.778,11.77,0.0064601]
[1672735328798,23.1739,11.778,11.77,12.66633596]
[1672735329008,23.1739,11.778,11.77,0.0064601]
[1672735329764,63.75,11.782,11.77,0.0064601]
[1672735329984,63.74,11.785,11.771,76.46987586]
[1672735330171,116.7408,11.787,11.772,175.6547]
[1672735330384,116.7408,11.787,11.773,63.8]
[1672735330710,116.7408,11.787,11.774,43.2823]
[1672735331110,116.7408,11.787,11.775,23.2823]
[1672735336500,30.0,11.789,11.776,63.78]
[1672735336714,30.0,11.789,11.777,22.517]
[1672735336903,30.0,11.789,11.778,63.77]
[1672735337115,30.0,11.789,11.778,86.287]
[1672735337341,30.0,11.789,11.778,22.517]
[1672735338603,52.5225,11.789,11.778,22.517]
[1672735339431,22.5225,11.789,11.778,22.517]
[1672735339637,22.5225,11.789,11.779,30.0]
[1672735339849,22.5225,11.789,11.78,63.76]
[1672735340068,22.5225,11.789,11.779,88.7024]
[1672735343545,30.0,11.788,11.779,88.7024]
[1672735345227,30.0,11.788,11.779,24.9324]
[1672735347007,63.73,11.787,11.779,24.9324]
[1672735347334,30.0,11.786,11.779,24.9324]
[1672735347547,30.0,11.784,11.779,24.9324]
[1672735348476,30.0,11.784,11.771,63.81]
[1672735348699,30.0,11.784,11.76,30.0]
[1672735348700,13.13,11.78,11.768,87.3843]
[1672735349223,13.13,11.78,11.768,23.5543]
[1672735349543,30.0,11.779,11.768,23.5543]
[1672735349945,30.0,11.779,11.768,136.5569]
[1672735350159,93.77,11.779,11.768,136.5569]
[1672735351968,30.0,11.779,11.768,200.3869]
[1672735352166,30.0,11.779,11.768,136.5569]
[1672735355633,53.3094,11.779,11.768,136.5569]
[1672735359317,117.0794,11.779,11.768,136.5569]
[1672735359505,53.3094,11.779,11.768,136.5569]
[1672735360662,53.3094,11.779,11.768,200.3869]
[1672735361404,117.0794,11.779,11.768,136.5569]
[1672735361615,53.3094,11.779,11.768,136.5569]
[1672735371296,30.0,11.777,11.768,136.5569]
[1672735378751,93.78,11.777,11.768,136.5569]
[1672735379185,44.0988176,11.776,11.768,136.5569]
[1672735379491,30.0,11.774,11.768,136.5569]
[1672735380016,30.0,11.772,11.76,63.87]
[1672735380233,63.81,11.771,11.759,52.6720833]
[1672735380426,111.6477,11.771,11.759,52.6720833]
[1672735381803,47.8377,11.771,11.759,52.6720833]
[1672735384543,47.8377,11.771,11.76,93.87]
[1672735384750,47.8377,11.771,11.76,63.87]
[1672735385476,47.8377,11.771,11.761,30.0]
[1672735385902,23.023,11.776,11.765,12.65987586]
[1672735386111,23.023,11.776,11.762,63.86]
[1672735386112,24.5565,11.775,11.762,88.6492]
[1672735386307,24.5565,11.775,11.764,30.0]
[1672735386519,24.5565,11.775,11.765,83.84]
[1672735389163,24.0565,11.775,11.765,83.84]
[1672735389353,24.0565,11.775,11.765,96.49987586]
[1672735391052,24.0565,11.775,11.765,83.84]
[1672735393891,24.0565,11.775,11.766,30.0]
[1672735394103,24.0565,11.775,11.767,63.83]
[1672735394301,24.0565,11.775,11.766,63.84]
[1672735403356,30.0,11.774,11.766,63.84]
[1672735403664,30.0,11.774,11.765,133.3835]
[1672735406302,24.0565,11.775,11.765,133.3835]
[1672735407546,54.0565,11.775,11.765,69.5435]
[1672735409236,54.0565,11.775,11.765,133.3835]
[1672735414377,54.0565,11.775,11.765,69.5435]
[1672735414707,24.0565,11.775,11.765,133.3835]
[1672735417230,24.0565,11.775,11.766,30.0]
[1672735417418,24.0565,11.775,11.767,63.83]
[1672735418483,54.0565,11.775,11.767,63.83]
[1672735420167,24.0565,11.775,11.767,63.83]
[1672735420482,24.0565,11.775,11.766,87.9736]
[1672735421432,24.0565,11.775,11.767,30.0]
[1672735421646,24.0565,11.775,11.766,87.9736]
[1672735422061,24.0565,11.775,11.767,30.0]
[1672735422276,24.0565,11.775,11.768,63.83]
[1672735422472,24.0565,11.775,11.766,24.1336]
[1672735422473,24.0565,11.775,11.767,63.83]
[1672735422680,24.0565,11.775,11.766,24.1336]
[1672735425425,30.0,11.774,11.766,24.1336]
[1672735427418,30.0,11.774,11.76,63.87]
[1672735427419,30.0,11.772,11.76,63.87]
[1672735427630,30.0,11.772,11.755,156.4217]
[1672735427825,43.15,11.77,11.756,76.54987586]
[1672735428033,43.15,11.77,11.756,100.66147586]
[1672735428989,13.15,11.77,11.759,65.33195916]
[1672735429519,30.0,11.77,11.759,52.6720833]
[1672735429940,43.03,11.77,11.759,52.6720833]
[1672735430139,30.0,11.768,11.759,52.6720833]
[1672735430671,30.0,11.768,11.759,86.7315313]
[1672735440246,30.0,11.768,11.759,52.6720833]
[1672735440566,30.0,11.768,11.76,63.87]
[1672735440992,30.0,11.768,11.759,52.6720833]
[1672735441193,23.9718,11.77,11.759,99.39430216]
[1672735441701,23.9718,11.77,11.76,63.87]
[1672735442446,23.9718,11.77,11.759,86.7344263]
[1672735448862,63.82,11.769,11.759,86.7344263]
[1672735449079,120.44771117,11.769,11.759,86.7344263]
[1672735449289,30.0,11.768,11.759,86.7344263]
[1672735449496,63.83,11.767,11.759,86.7344263]
[1672735449816,30.0,11.766,11.759,86.7344263]
[1672735450028,20.0,11.765,11.759,86.7344263]
[1672735450345,30.0,11.763,11.759,86.7344263]
[1672735450559,63.86,11.762,11.759,86.7344263]
[1672735450748,30.0,11.761,11.747,63.94]
[1672735450960,13.03,11.76,11.747,63.94]
[1672735451396,13.03,11.76,11.748,34.090677]
[1672735451597,13.03,11.76,11.749,63.93]
[1672735452016,13.03,11.76,11.748,34.090677]
[1672735452433,13.03,11.76,11.749,63.93]
[1672735453377,13.03,11.76,11.748,34.090677]
[1672735457399,13.03,11.76,11.749,63.93]
[1672735457587,30.0,11.761,11.749,63.93]
[1672735461367,24.8668,11.762,11.753,63.91]
[1672735461594,24.8668,11.762,11.754,20.0]
[1672735461812,24.8668,11.762,11.755,63.9]
[1672735462430,111.4549,11.764,11.755,63.9]
[1672735470424,30.0,11.763,11.754,43.3922]
[1672735470954,111.4549,11.764,11.754,43.3922]
[1672735471141,30.0,11.763,11.754,43.3922]
[1672735472320,30.0,11.763,11.753,63.91]
[1672735472321,63.86,11.762,11.753,63.91]
[1672735472526,13.15,11.76,11.752,9.9189445]
[1672735472937,77.02,11.76,11.752,9.9189445]
[1672735473772,30.0,11.761,11.752,9.9189445]
[1672735474202,30.0,11.759,11.752,9.9189445]
[1672735475141,63.88,11.758,11.752,9.9189445]
[1672735476101,30.0,11.757,11.752,9.9189445]
[1672735477777,30.0,11.757,11.724,142.49719611]
[1672735477778,19.837889,11.752,11.724,142.49719611]
[1672735477994,13.06,11.73,11.724,142.49719611]
[1672735479152,94.0,11.737,11.725,204.62326708]
[1672735479366,13.14,11.73,11.724,142.49719611]
[1672735479580,13.14,11.73,11.721,142.55766336]
[1672735479787,30.0,11.737,11.723,141.7301134]
[1672735479988,30.0,11.737,11.724,64.07]
[1672735480197,30.0,11.737,11.723,64.07]
[1672735480408,30.0,11.737,11.721,64.08]
[1672735480833,13.19,11.74,11.722,30.0]
[1672735481149,77.17,11.74,11.723,76.72987586]
[1672735481368,13.19,11.74,11.724,30.0]
[1672735481577,30.0,11.741,11.725,39.41]
[1672735481792,30.0,11.741,11.725,52.06987586]
[1672735482313,30.0,11.741,11.726,30.0]
[1672735482524,30.0,11.741,11.727,38.73]
[1672735482923,69.9576,11.742,11.728,30.0]
[1672735483143,69.9576,11.742,11.729,59.5]
[1672735483353,30.0,11.748,11.729,72.15987586]
[1672735483569,30.0,11.748,11.73,12.65987586]
[1672735483769,30.0,11.748,11.732,30.0]
[1672735484092,30.0,11.748,11.733,66.66]
[1672735485160,93.91,11.752,11.734,30.0]
[1672735485361,30.0,11.752,11.735,51.62]
[1672735485787,30.0,11.752,11.736,30.0]
[1672735485989,30.0,11.752,11.737,53.78]
[1672735486186,30.0,11.752,11.736,53.79]
[1672735487571,30.0,11.752,11.735,56.17]
[1672735487759,30.0,11.752,11.734,56.75]
[1672735487965,93.91,11.752,11.734,56.75]
[1672735488180,13.2,11.75,11.734,56.75]
[1672735488604,30.0,11.749,11.734,56.75]
[1672735489578,30.0,11.747,11.734,56.75]
[1672735490202,63.95,11.746,11.732,48.33]
[1672735490401,63.95,11.746,11.731,73.3699]
[1672735490402,13.12,11.74,11.731,73.3699]
[1672735490732,13.12,11.74,11.729,48.34]
[1672735491144,13.12,11.74,11.725,43.28]
[1672735491474,13.12,11.74,11.726,30.0]
[1672735491658,30.0,11.742,11.728,30.0]
[1672735491867,30.0,11.742,11.729,43.08]
[1672735492512,70.4907,11.743,11.729,43.08]
[1672735492704,13.19,11.74,11.729,43.08]
[1672735492920,13.19,11.74,11.725,44.12]
[1672735493142,13.19,11.74,11.725,56.77987586]
[1672735493364,13.19,11.74,11.725,44.12]
[1672735493569,30.0,11.739,11.724,43.49]
[1672735493882,30.0,11.739,11.725,30.0]
[1672735494196,30.0,11.739,11.726,41.74]
[1672735495343,43.19,11.74,11.726,41.74]
[1672735495546,43.19,11.74,11.724,41.82]
[1672735495758,95.99,11.74,11.724,41.82]
[1672735495980,30.0,11.738,11.724,41.82]
[1672735496739,30.0,11.738,11.725,30.0]
[1672735496915,30.0,11.738,11.726,42.76]
[1672735497330,30.0,11.738,11.724,43.6]
[1672735497539,30.0,11.738,11.725,30.0]
[1672735497858,107.17,11.74,11.726,43.58]
[1672735498067,43.19,11.74,11.727,30.0]
[1672735498273,43.19,11.74,11.728,45.97]
[1672735498599,166.2974,11.742,11.729,30.0]
[1672735498812,102.3274,11.742,11.73,46.35]
[1672735499039,30.0,11.745,11.73,46.35]
[1672735499250,30.0,11.745,11.731,20.0]
[1672735499461,30.0,11.745,11.732,50.32]
[1672735499666,30.0,11.745,11.733,20.0]
[1672735499878,30.0,11.745,11.734,51.07]
[1672735500092,13.2,11.74,11.712,119.76988126]
[1672735500415,30.0,11.738,11.72,105.7945589]
[1672735500610,64.0,11.737,11.72,118.45443476]
[1672735500820,30.0,11.736,11.72,118.45443476]
[1672735501558,30.0,11.736,11.721,30.0]
[1672735501885,93.99,11.739,11.722,12.65987586]
[1672735502210,29.57425,11.739,11.722,12.65987586]
[1672735503447,29.57425,11.739,11.723,5.404]
[1672735503658,29.57425,11.739,11.725,30.0]
[1672735503879,29.57425,11.739,11.726,9.918]
[1672735504077,29.57425,11.739,11.726,22.57787586]
[1672735504700,99.7748,11.741,11.726,22.57787586]
[1672735504701,69.7748,11.741,11.727,12.65987586]
[1672735504914,118.8175,11.743,11.729,30.0]
[1672735505125,63.95,11.746,11.73,38.12]
[1672735505348,63.95,11.746,11.73,50.77987586]